[Event "Titled Tuesday Blitz May 23 Early 2023"]
[White "Jiganchine, Roman"]
[Black "Heinemann, Josefine"]
[WhiteFideId "2603667"]
[BlackFideId "12900460"]
[WhiteElo "2307"]
[BlackElo "2342"]
[Result "0-1"]
[Round "05"]
[TimeControl "180+2"]
[Date "2023.05.23"]
[WhiteClock "0:00:00"]
[BlackClock "0:01:37"]

1. e4 {[%clk 0:03:00]}  c6 {[%clk 0:02:58]} 2. d4 {[%clk 0:02:59]}  d5 {[%clk 0:02:54]} 3. exd5 {[%clk 0:02:57]}  cxd5 {[%clk 0:02:53]} 4. Nf3 {[%clk 0:02:57]}  Nc6 {[%clk 0:02:51]} 5. c4 {[%clk 0:02:57]}  Nf6 {[%clk 0:02:49]} 6. Nc3 {[%clk 0:02:56]}  e6 {[%clk 0:02:42]} 7. cxd5 {[%clk 0:02:52]}  Nxd5 {[%clk 0:02:40]} 8. Bd3 {[%clk 0:02:52]}  Be7 {[%clk 0:02:39]} 9. O-O {[%clk 0:02:52]}  O-O {[%clk 0:02:39]} 10. Re1 {[%clk 0:02:52]}  Bf6 {[%clk 0:02:36]} 11. Be4 {[%clk 0:02:51]}  Nce7 {[%clk 0:02:36]} 12. Ne5 {[%clk 0:02:51]}  b6 {[%clk 0:02:35]} 13. Qf3 {[%clk 0:02:42]}  Bb7 {[%clk 0:02:35]} 14. Qh3 {[%clk 0:02:08]}  g6 {[%clk 0:02:24]} 15. Bh6 {[%clk 0:02:06]}  Bg7 {[%clk 0:02:23]} 16. Bxg7 {[%clk 0:01:50]}  Kxg7 {[%clk 0:02:24]} 17. Ng4 {[%clk 0:01:37]}  h5 {[%clk 0:02:23]} 18. Ne5 {[%clk 0:01:32]}  Rb8 {[%clk 0:02:18]} 19. Rad1 {[%clk 0:01:31]}  Nxc3 {[%clk 0:02:15]} 20. bxc3 {[%clk 0:01:01]}  Bxe4 {[%clk 0:02:12]} 21. Rxe4 {[%clk 0:01:02]}  Qd5 {[%clk 0:02:10]} 22. Ree1 {[%clk 0:00:49]}  b5 {[%clk 0:02:08]} 23. Nd3 {[%clk 0:00:38]}  Rbc8 {[%clk 0:02:02]} 24. Nf4 {[%clk 0:00:37]}  Qf5 {[%clk 0:02:01]} 25. Qg3 {[%clk 0:00:20]}  Nd5 {[%clk 0:01:57]} 26. Nxd5 {[%clk 0:00:16]}  Qxd5 {[%clk 0:01:58]} 27. Re5 {[%clk 0:00:12]}  Qxa2 {[%clk 0:01:56]} 28. d5 {[%clk 0:00:07]}  Rfd8 {[%clk 0:01:51]} 29. Qe3 {[%clk 0:00:02]}  Rxd5 {[%clk 0:01:48]} 30. Rexd5 {[%clk 0:00:01]}  exd5 {[%clk 0:01:49]} 31. Qe5+ {[%clk 0:00:01]}  Kg8 {[%clk 0:01:48]} 32. h4 {[%clk 0:00:02]}  Qc4 {[%clk 0:01:45]} 33. Rxd5 {[%clk 0:00:00]}  Qxh4 {[%clk 0:01:37]} 0-1


[Site "https://www.chess.com"]

[Event "Titled Tuesday Blitz May 23 Early 2023"]
[White "Osinovsky, Stepan"]
[Black "Estremera Panos, Sergio"]
[WhiteFideId "4157354"]
[BlackFideId "2200864"]
[WhiteElo "2222"]
[BlackElo "2253"]
[Result "0-1"]
[Round "05"]
[TimeControl "180+2"]
[Date "2023.05.23"]
[WhiteClock "0:00:00"]
[BlackClock "0:00:43"]

1. Nf3 {[%clk 0:02:58]}  d5 {[%clk 0:02:56]} 2. g3 {[%clk 0:02:59]}  Nf6 {[%clk 0:02:53]} 3. Bg2 {[%clk 0:03:00]}  Bf5 {[%clk 0:02:52]} 4. O-O {[%clk 0:03:00]}  c6 {[%clk 0:02:49]} 5. d3 {[%clk 0:03:01]}  h6 {[%clk 0:02:49]} 6. Nbd2 {[%clk 0:03:00]}  e6 {[%clk 0:02:50]} 7. b3 {[%clk 0:02:59]}  Be7 {[%clk 0:02:39]} 8. Bb2 {[%clk 0:02:59]}  O-O {[%clk 0:02:38]} 9. c4 {[%clk 0:02:45]}  Nbd7 {[%clk 0:02:36]} 10. Rc1 {[%clk 0:02:44]}  a5 {[%clk 0:02:28]} 11. a3 {[%clk 0:02:42]}  c5 {[%clk 0:02:23]} 12. cxd5 {[%clk 0:02:28]}  exd5 {[%clk 0:02:22]} 13. e4 {[%clk 0:01:40]}  Bh7 {[%clk 0:02:20]} 14. e5 {[%clk 0:01:12]}  Ne8 {[%clk 0:02:13]} 15. d4 {[%clk 0:01:02]}  b6 {[%clk 0:02:07]} 16. Re1 {[%clk 0:00:51]}  Nc7 {[%clk 0:02:07]} 17. Nf1 {[%clk 0:00:45]}  Ne6 {[%clk 0:01:56]} 18. Ne3 {[%clk 0:00:44]}  cxd4 {[%clk 0:01:55]} 19. Nxd4 {[%clk 0:00:41]}  Ndc5 {[%clk 0:01:38]} 20. Nc6 {[%clk 0:00:31]}  Qe8 {[%clk 0:01:29]} 21. Nxd5 {[%clk 0:00:26]}  Bg5 {[%clk 0:01:13]} 22. f4 {[%clk 0:00:24]}  Qxc6 {[%clk 0:01:06]} 23. fxg5 {[%clk 0:00:17]}  Qb5 {[%clk 0:00:55]} 24. gxh6 {[%clk 0:00:15]}  Nd3 {[%clk 0:00:55]} 25. hxg7 {[%clk 0:00:14]}  Rfd8 {[%clk 0:00:46]} 26. Nf6+ {[%clk 0:00:06]}  Kxg7 {[%clk 0:00:45]} 27. Nh5+ {[%clk 0:00:00]}  Kh8 {[%clk 0:00:43]} 0-1


[Site "https://www.chess.com"]

[Event "Titled Tuesday Blitz May 23 Early 2023"]
[White "Necula, Iulian"]
[Black "Gatterer, Florian"]
[WhiteFideId "1232380"]
[BlackFideId "811688"]
[WhiteElo "1790"]
[BlackElo "2221"]
[Result "1/2-1/2"]
[Round "05"]
[TimeControl "180+2"]
[Date "2023.05.23"]
[WhiteClock "0:02:36"]
[BlackClock "0:02:24"]

1. d4 {[%clk 0:03:00]}  c6 {[%clk 0:02:59]} 2. Nc3 {[%clk 0:03:00]}  d5 {[%clk 0:02:59]} 3. Bf4 {[%clk 0:03:00]}  Nf6 {[%clk 0:02:57]} 4. e3 {[%clk 0:03:00]}  g6 {[%clk 0:02:54]} 5. h4 {[%clk 0:02:57]}  h5 {[%clk 0:02:53]} 6. Qd2 {[%clk 0:02:55]}  b5 {[%clk 0:02:50]} 7. a3 {[%clk 0:02:54]}  a5 {[%clk 0:02:50]} 8. Nf3 {[%clk 0:02:44]}  Bf5 {[%clk 0:02:48]} 9. Ne5 {[%clk 0:02:40]}  Qc8 {[%clk 0:02:45]} 10. Bd3 {[%clk 0:02:37]}  Nbd7 {[%clk 0:02:24]} 11. O-O {[%clk 0:02:36]} 1/2-1/2


[Site "https://www.chess.com"]

[Event "Titled Tuesday Blitz May 23 Early 2023"]
[White "KSho99"]
[Black "Boyer, Mahel"]
[BlackFideId "45102422"]
[WhiteElo "2165"]
[BlackElo "2439"]
[Result "0-1"]
[Round "05"]
[TimeControl "180+2"]
[Date "2023.05.23"]
[WhiteClock "0:00:04"]
[BlackClock "0:00:56"]

1. d4 {[%clk 0:03:00]}  d6 {[%clk 0:02:58]} 2. e4 {[%clk 0:02:55]}  Nf6 {[%clk 0:02:58]} 3. Nc3 {[%clk 0:02:55]}  e5 {[%clk 0:02:58]} 4. Nf3 {[%clk 0:02:54]}  Nbd7 {[%clk 0:02:55]} 5. Rg1 {[%clk 0:02:53]}  g6 {[%clk 0:02:53]} 6. g4 {[%clk 0:02:53]}  Bg7 {[%clk 0:02:54]} 7. g5 {[%clk 0:02:53]}  Nh5 {[%clk 0:02:52]} 8. Be3 {[%clk 0:02:52]}  c6 {[%clk 0:02:47]} 9. Qd2 {[%clk 0:02:47]}  Qa5 {[%clk 0:02:46]} 10. Bc4 {[%clk 0:02:16]}  Qc7 {[%clk 0:02:01]} 11. Bb3 {[%clk 0:02:12]}  b5 {[%clk 0:01:31]} 12. a4 {[%clk 0:01:33]}  b4 {[%clk 0:01:16]} 13. Ne2 {[%clk 0:01:31]}  a5 {[%clk 0:01:15]} 14. O-O-O {[%clk 0:01:19]}  Ba6 {[%clk 0:01:08]} 15. Ng3 {[%clk 0:00:55]}  Nxg3 {[%clk 0:00:58]} 16. hxg3 {[%clk 0:00:55]}  c5 {[%clk 0:00:54]} 17. dxe5 {[%clk 0:00:46]}  Nxe5 {[%clk 0:00:52]} 18. Nxe5 {[%clk 0:00:40]}  dxe5 {[%clk 0:00:53]} 19. Qd6 {[%clk 0:00:39]}  Qxd6 {[%clk 0:00:51]} 20. Rxd6 {[%clk 0:00:39]}  c4 {[%clk 0:00:51]} 21. Ba2 {[%clk 0:00:38]}  O-O {[%clk 0:00:51]} 22. Bb6 {[%clk 0:00:28]}  Rfc8 {[%clk 0:00:52]} 23. Rgd1 {[%clk 0:00:25]}  b3 {[%clk 0:00:51]} 24. cxb3 {[%clk 0:00:19]}  Bb7 {[%clk 0:00:52]} 25. bxc4 {[%clk 0:00:16]}  Bxe4 {[%clk 0:00:50]} 26. c5 {[%clk 0:00:12]}  h5 {[%clk 0:00:49]} 27. Rd7 {[%clk 0:00:12]}  Rf8 {[%clk 0:00:48]} 28. R1d6 {[%clk 0:00:09]}  Bf5 {[%clk 0:00:48]} 29. Re7 {[%clk 0:00:08]}  h4 {[%clk 0:00:49]} 30. gxh4 {[%clk 0:00:05]}  Rac8 {[%clk 0:00:50]} 31. Kd2 {[%clk 0:00:04]}  e4 {[%clk 0:00:51]} 32. Ke3 {[%clk 0:00:04]}  Bxb2 {[%clk 0:00:52]} 33. Bxa5 {[%clk 0:00:04]}  Bc1+ {[%clk 0:00:53]} 34. Ke2 {[%clk 0:00:04]}  Bf4 {[%clk 0:00:53]} 35. Rb6 {[%clk 0:00:03]}  Rxc5 {[%clk 0:00:54]} 36. Bb4 {[%clk 0:00:03]}  Rc2+ {[%clk 0:00:55]} 37. Kd1 {[%clk 0:00:04]}  Rxa2 {[%clk 0:00:56]} 38. a5 {[%clk 0:00:04]}  Rc8 {[%clk 0:00:55]} 39. Rbb7 {[%clk 0:00:04]}  Rc1# {[%clk 0:00:56]} 0-1


[Site "https://www.chess.com"]

[Event "Titled Tuesday Blitz May 23 Early 2023"]
[White "Ovezdurdyyeva, Jemal"]
[Black "Sadubayev, Airat"]
[WhiteFideId "14001888"]
[BlackFideId "13713264"]
[WhiteElo "2043"]
[BlackElo "2157"]
[Result "1-0"]
[Round "05"]
[TimeControl "180+2"]
[Date "2023.05.23"]
[WhiteClock "0:00:12"]
[BlackClock "0:00:00"]

1. e4 {[%clk 0:03:00]}  c6 {[%clk 0:02:55]} 2. d4 {[%clk 0:03:00]}  d5 {[%clk 0:02:56]} 3. Nc3 {[%clk 0:02:59]}  dxe4 {[%clk 0:02:56]} 4. Nxe4 {[%clk 0:02:59]}  Nf6 {[%clk 0:02:57]} 5. Ng3 {[%clk 0:02:59]}  Qc7 {[%clk 0:02:56]} 6. Be2 {[%clk 0:02:58]}  g6 {[%clk 0:02:54]} 7. Bg5 {[%clk 0:02:54]}  Bg7 {[%clk 0:02:54]} 8. Qd2 {[%clk 0:02:54]}  O-O {[%clk 0:02:53]} 9. O-O-O {[%clk 0:02:50]}  Nbd7 {[%clk 0:02:39]} 10. h4 {[%clk 0:02:50]}  e5 {[%clk 0:02:31]} 11. h5 {[%clk 0:02:42]}  exd4 {[%clk 0:02:20]} 12. Bh6 {[%clk 0:02:38]}  d3 {[%clk 0:02:05]} 13. Bxd3 {[%clk 0:02:34]}  Ne5 {[%clk 0:01:46]} 14. N1e2 {[%clk 0:02:19]}  Nxd3+ {[%clk 0:01:39]} 15. cxd3 {[%clk 0:02:19]}  Be6 {[%clk 0:01:21]} 16. Bxg7 {[%clk 0:02:18]}  Kxg7 {[%clk 0:01:17]} 17. Qc3 {[%clk 0:02:18]}  h6 {[%clk 0:00:57]} 18. Ne4 {[%clk 0:02:04]}  Qe7 {[%clk 0:00:56]} 19. Nd4 {[%clk 0:01:48]}  Rad8 {[%clk 0:00:24]} 20. Rde1 {[%clk 0:01:40]}  c5 {[%clk 0:00:20]} 21. Nf3 {[%clk 0:01:05]}  b5 {[%clk 0:00:18]} 22. Nfg5 {[%clk 0:00:19]}  b4 {[%clk 0:00:16]} 23. Qe5 {[%clk 0:00:18]}  Rd5 {[%clk 0:00:12]} 24. Nxe6+ {[%clk 0:00:18]}  fxe6 {[%clk 0:00:12]} 25. Qg3 {[%clk 0:00:18]}  Nxe4 {[%clk 0:00:12]} 26. Qxg6+ {[%clk 0:00:18]}  Kh8 {[%clk 0:00:11]} 27. Qxh6+ {[%clk 0:00:18]}  Kg8 {[%clk 0:00:11]} 28. Rxe4 {[%clk 0:00:18]}  Rf6 {[%clk 0:00:10]} 29. Rg4+ {[%clk 0:00:17]}  Kf7 {[%clk 0:00:08]} 30. Rg7+ {[%clk 0:00:17]}  Ke8 {[%clk 0:00:08]} 31. Rxe7+ {[%clk 0:00:17]}  Kxe7 {[%clk 0:00:09]} 32. Qg7+ {[%clk 0:00:17]}  Rf7 {[%clk 0:00:09]} 33. Qg3 {[%clk 0:00:18]}  c4 {[%clk 0:00:07]} 34. dxc4 {[%clk 0:00:18]}  Rc5 {[%clk 0:00:07]} 35. h6 {[%clk 0:00:17]}  Rxc4+ {[%clk 0:00:06]} 36. Kb1 {[%clk 0:00:18]}  b3 {[%clk 0:00:06]} 37. axb3 {[%clk 0:00:17]}  Rc8 {[%clk 0:00:04]} 38. Qg5+ {[%clk 0:00:17]}  Kd7 {[%clk 0:00:04]} 39. Rd1+ {[%clk 0:00:17]}  Kc6 {[%clk 0:00:03]} 40. Qg6 {[%clk 0:00:13]}  Rxf2 {[%clk 0:00:02]} 41. Qxe6+ {[%clk 0:00:12]}  Kb7 {[%clk 0:00:02]} 42. Qe4+ {[%clk 0:00:12]}  Ka6 {[%clk 0:00:00]} 43. h7 {[%clk 0:00:12]} 1-0


[Site "https://www.chess.com"]

[Event "Titled Tuesday Blitz May 23 Early 2023"]
[White "Artemenko, Oleg"]
[Black "littlepillow2010"]
[WhiteFideId "14201798"]
[WhiteElo "2287"]
[BlackElo "2334"]
[Result "0-1"]
[Round "05"]
[TimeControl "180+2"]
[Date "2023.05.23"]
[WhiteClock "0:00:41"]
[BlackClock "0:00:18"]

1. d4 {[%clk 0:03:00]}  d5 {[%clk 0:02:58]} 2. c4 {[%clk 0:03:00]}  e6 {[%clk 0:02:55]} 3. Nc3 {[%clk 0:03:00]}  Nf6 {[%clk 0:02:54]} 4. cxd5 {[%clk 0:03:00]}  exd5 {[%clk 0:02:54]} 5. Bg5 {[%clk 0:03:01]}  Be7 {[%clk 0:02:54]} 6. e3 {[%clk 0:03:01]}  O-O {[%clk 0:02:53]} 7. Bd3 {[%clk 0:03:02]}  c6 {[%clk 0:02:54]} 8. Qc2 {[%clk 0:03:02]}  h6 {[%clk 0:02:54]} 9. Bh4 {[%clk 0:03:03]}  Na6 {[%clk 0:02:47]} 10. Nf3 {[%clk 0:03:03]}  Nb4 {[%clk 0:02:47]} 11. Qe2 {[%clk 0:03:04]}  Nxd3+ {[%clk 0:02:47]} 12. Qxd3 {[%clk 0:03:05]}  Ne4 {[%clk 0:02:41]} 13. Nxe4 {[%clk 0:03:01]}  Bxh4 {[%clk 0:02:39]} 14. Nc5 {[%clk 0:02:58]}  Be7 {[%clk 0:02:32]} 15. Ne5 {[%clk 0:02:55]}  Qc7 {[%clk 0:02:19]} 16. f4 {[%clk 0:02:53]}  b6 {[%clk 0:02:12]} 17. Nb3 {[%clk 0:02:41]}  a5 {[%clk 0:02:08]} 18. O-O {[%clk 0:02:40]}  Ba6 {[%clk 0:02:07]} 19. Qc2 {[%clk 0:02:35]}  Bxf1 {[%clk 0:02:07]} 20. Rxf1 {[%clk 0:02:36]}  c5 {[%clk 0:02:08]} 21. Rf3 {[%clk 0:02:35]}  Rac8 {[%clk 0:02:03]} 22. dxc5 {[%clk 0:02:35]}  bxc5 {[%clk 0:01:56]} 23. Rg3 {[%clk 0:02:34]}  Kh8 {[%clk 0:01:28]} 24. Qf5 {[%clk 0:02:30]}  Bf6 {[%clk 0:01:23]} 25. Ng4 {[%clk 0:02:01]}  Bxb2 {[%clk 0:01:22]} 26. Rh3 {[%clk 0:02:01]}  Qd6 {[%clk 0:01:02]} 27. Qc2 {[%clk 0:00:54]}  Qg6 {[%clk 0:00:32]} 28. f5 {[%clk 0:00:41]}  Qxg4 {[%clk 0:00:30]} 29. Rg3 {[%clk 0:00:41]}  Qb4 {[%clk 0:00:19]} 30. Qxb2 {[%clk 0:00:41]}  Qe1# {[%clk 0:00:18]} 0-1


[Site "https://www.chess.com"]

[Event "Titled Tuesday Blitz May 23 Early 2023"]
[White "Ambartsumova, Karina"]
[Black "Pg, Mohd Omar Ak Hira"]
[WhiteFideId "4166299"]
[BlackFideId "10500103"]
[WhiteElo "2240"]
[BlackElo "2167"]
[Result "1-0"]
[Round "05"]
[TimeControl "180+2"]
[Date "2023.05.23"]
[WhiteClock "0:00:12"]
[BlackClock "0:00:04"]

1. e4 {[%clk 0:03:00]}  c5 {[%clk 0:02:54]} 2. Nf3 {[%clk 0:03:01]}  a6 {[%clk 0:02:53]} 3. c4 {[%clk 0:03:00]}  d6 {[%clk 0:02:51]} 4. d4 {[%clk 0:02:57]}  cxd4 {[%clk 0:02:50]} 5. Nxd4 {[%clk 0:02:58]}  Nf6 {[%clk 0:02:50]} 6. Nc3 {[%clk 0:02:59]}  g6 {[%clk 0:02:51]} 7. Be3 {[%clk 0:02:57]}  Ng4 {[%clk 0:02:48]} 8. Bc1 {[%clk 0:02:48]}  Bg7 {[%clk 0:02:44]} 9. Be2 {[%clk 0:02:41]}  Nf6 {[%clk 0:02:38]} 10. O-O {[%clk 0:02:40]}  O-O {[%clk 0:02:38]} 11. Be3 {[%clk 0:02:40]}  Nbd7 {[%clk 0:02:30]} 12. Rc1 {[%clk 0:02:37]}  Nc5 {[%clk 0:02:29]} 13. f3 {[%clk 0:02:37]}  Bd7 {[%clk 0:02:25]} 14. Qd2 {[%clk 0:02:33]}  Re8 {[%clk 0:02:23]} 15. b4 {[%clk 0:02:19]}  Ne6 {[%clk 0:02:22]} 16. Nb3 {[%clk 0:02:19]}  h5 {[%clk 0:02:12]} 17. f4 {[%clk 0:02:14]}  Nf8 {[%clk 0:01:58]} 18. f5 {[%clk 0:02:06]}  h4 {[%clk 0:01:45]} 19. a3 {[%clk 0:01:53]}  h3 {[%clk 0:01:44]} 20. g3 {[%clk 0:01:39]}  gxf5 {[%clk 0:01:36]} 21. exf5 {[%clk 0:01:37]}  Bc6 {[%clk 0:01:34]} 22. Nd5 {[%clk 0:01:31]}  N8h7 {[%clk 0:01:03]} 23. Bb6 {[%clk 0:01:22]}  Qd7 {[%clk 0:00:57]} 24. Bf3 {[%clk 0:00:56]}  Rac8 {[%clk 0:00:53]} 25. Nd4 {[%clk 0:00:42]}  Kh8 {[%clk 0:00:48]} 26. Bh1 {[%clk 0:00:23]}  Nh5 {[%clk 0:00:33]} 27. Rce1 {[%clk 0:00:20]}  e5 {[%clk 0:00:31]} 28. fxe6 {[%clk 0:00:20]}  fxe6 {[%clk 0:00:31]} 29. Nxc6 {[%clk 0:00:19]}  exd5 {[%clk 0:00:27]} 30. Nd4 {[%clk 0:00:11]}  dxc4 {[%clk 0:00:26]} 31. Nf5 {[%clk 0:00:10]}  Bf6 {[%clk 0:00:18]} 32. Bd4 {[%clk 0:00:09]}  Rxe1 {[%clk 0:00:18]} 33. Qxe1 {[%clk 0:00:08]}  Rf8 {[%clk 0:00:18]} 34. Qd2 {[%clk 0:00:07]}  Qf7 {[%clk 0:00:10]} 35. Qc3 {[%clk 0:00:07]}  Bxd4+ {[%clk 0:00:10]} 36. Qxd4+ {[%clk 0:00:08]}  Qf6 {[%clk 0:00:10]} 37. Qxc4 {[%clk 0:00:07]}  Ng7 {[%clk 0:00:09]} 38. Ne3 {[%clk 0:00:07]}  Qe7 {[%clk 0:00:09]} 39. Rxf8+ {[%clk 0:00:07]}  Qxf8 {[%clk 0:00:10]} 40. Qe4 {[%clk 0:00:06]}  Qf7 {[%clk 0:00:07]} 41. Bf3 {[%clk 0:00:05]}  Ng5 {[%clk 0:00:07]} 42. Qh4+ {[%clk 0:00:05]}  Nh7 {[%clk 0:00:08]} 43. Be4 {[%clk 0:00:05]}  Ne6 {[%clk 0:00:07]} 44. Nd5 {[%clk 0:00:05]}  Ng5 {[%clk 0:00:07]} 45. Bxh7 {[%clk 0:00:04]}  Nxh7 {[%clk 0:00:06]} 46. Qe4 {[%clk 0:00:04]}  Kg7 {[%clk 0:00:05]} 47. Qd4+ {[%clk 0:00:04]}  Nf6 {[%clk 0:00:05]} 48. Nxf6 {[%clk 0:00:04]}  Qxf6 {[%clk 0:00:06]} 49. Qg4+ {[%clk 0:00:04]}  Kf7 {[%clk 0:00:05]} 50. Qd7+ {[%clk 0:00:04]}  Kg6 {[%clk 0:00:04]} 51. Qxh3 {[%clk 0:00:02]}  Qa1+ {[%clk 0:00:04]} 52. Kg2 {[%clk 0:00:03]}  Qb2+ {[%clk 0:00:04]} 53. Kg1 {[%clk 0:00:03]}  Qxa3 {[%clk 0:00:04]} 54. Qg4+ {[%clk 0:00:03]}  Kf7 {[%clk 0:00:05]} 55. Qf4+ {[%clk 0:00:03]}  Ke7 {[%clk 0:00:04]} 56. Qe4+ {[%clk 0:00:04]}  Kd7 {[%clk 0:00:05]} 57. Qxb7+ {[%clk 0:00:04]}  Ke6 {[%clk 0:00:05]} 58. Qe4+ {[%clk 0:00:05]}  Kd7 {[%clk 0:00:05]} 59. Kg2 {[%clk 0:00:05]}  Qb2+ {[%clk 0:00:05]} 60. Kh3 {[%clk 0:00:05]}  Qh8+ {[%clk 0:00:05]} 61. Kg2 {[%clk 0:00:04]}  Qb2+ {[%clk 0:00:05]} 62. Kh3 {[%clk 0:00:05]}  Qh8+ {[%clk 0:00:04]} 63. Qh4 {[%clk 0:00:05]}  Qe5 {[%clk 0:00:04]} 64. Qg4+ {[%clk 0:00:05]}  Kc6 {[%clk 0:00:03]} 65. Kg2 {[%clk 0:00:06]}  Qb2+ {[%clk 0:00:02]} 66. Kf3 {[%clk 0:00:06]}  Kb5 {[%clk 0:00:02]} 67. h4 {[%clk 0:00:05]}  Qc3+ {[%clk 0:00:02]} 68. Kg2 {[%clk 0:00:06]}  Qd2+ {[%clk 0:00:02]} 69. Kh3 {[%clk 0:00:06]}  Qe1 {[%clk 0:00:02]} 70. Qf5+ {[%clk 0:00:06]}  Kxb4 {[%clk 0:00:02]} 71. h5 {[%clk 0:00:07]}  Qh1+ {[%clk 0:00:01]} 72. Kg4 {[%clk 0:00:07]}  Qd1+ {[%clk 0:00:01]} 73. Kg5 {[%clk 0:00:07]}  Qd2+ {[%clk 0:00:02]} 74. Qf4+ {[%clk 0:00:08]}  Qxf4+ {[%clk 0:00:02]} 75. gxf4 {[%clk 0:00:09]}  d5 {[%clk 0:00:03]} 76. h6 {[%clk 0:00:09]}  d4 {[%clk 0:00:04]} 77. h7 {[%clk 0:00:10]}  d3 {[%clk 0:00:05]} 78. h8=Q {[%clk 0:00:11]}  d2 {[%clk 0:00:06]} 79. Qb2+ {[%clk 0:00:12]}  Kc4 {[%clk 0:00:06]} 80. Qxd2 {[%clk 0:00:12]}  Kb3 {[%clk 0:00:04]} 81. Qa5 {[%clk 0:00:12]} 1-0


[Site "https://www.chess.com"]

[Event "Titled Tuesday Blitz May 23 Early 2023"]
[White "Kiremitciyan, Ari"]
[Black "Blokhin, Sofia"]
[WhiteFideId "6373445"]
[BlackFideId "4508190"]
[WhiteElo "2181"]
[BlackElo "1994"]
[Result "1-0"]
[Round "05"]
[TimeControl "180+2"]
[Date "2023.05.23"]
[WhiteClock "0:01:33"]
[BlackClock "0:00:06"]

1. e4 {[%clk 0:02:59]}  c5 {[%clk 0:02:59]} 2. Nc3 {[%clk 0:02:59]}  e6 {[%clk 0:02:58]} 3. Nf3 {[%clk 0:02:59]}  a6 {[%clk 0:02:55]} 4. d4 {[%clk 0:02:58]}  cxd4 {[%clk 0:02:55]} 5. Nxd4 {[%clk 0:02:59]}  Qc7 {[%clk 0:02:55]} 6. Bd3 {[%clk 0:02:59]}  Nf6 {[%clk 0:02:54]} 7. O-O {[%clk 0:02:59]}  b5 {[%clk 0:02:50]} 8. a3 {[%clk 0:02:53]}  Bb7 {[%clk 0:02:49]} 9. Qe2 {[%clk 0:02:49]}  Be7 {[%clk 0:02:48]} 10. Kh1 {[%clk 0:02:48]}  O-O {[%clk 0:02:47]} 11. e5 {[%clk 0:02:43]}  Nd5 {[%clk 0:02:42]} 12. Ne4 {[%clk 0:02:41]}  Nc6 {[%clk 0:02:33]} 13. Nxc6 {[%clk 0:02:40]}  Bxc6 {[%clk 0:02:29]} 14. f4 {[%clk 0:02:40]}  f5 {[%clk 0:02:20]} 15. exf6 {[%clk 0:02:39]}  Nxf6 {[%clk 0:02:19]} 16. Bd2 {[%clk 0:02:29]}  Qb7 {[%clk 0:02:13]} 17. Rae1 {[%clk 0:02:27]}  Kh8 {[%clk 0:02:00]} 18. Bb4 {[%clk 0:02:23]}  Bxb4 {[%clk 0:01:53]} 19. axb4 {[%clk 0:02:24]}  Nxe4 {[%clk 0:01:50]} 20. Bxe4 {[%clk 0:02:25]}  Bxe4 {[%clk 0:01:47]} 21. Qxe4 {[%clk 0:02:26]}  Qxe4 {[%clk 0:01:46]} 22. Rxe4 {[%clk 0:02:27]}  Rac8 {[%clk 0:01:45]} 23. c3 {[%clk 0:02:27]}  Rf5 {[%clk 0:01:33]} 24. Kg1 {[%clk 0:02:25]}  Kg8 {[%clk 0:01:31]} 25. Ra1 {[%clk 0:02:24]}  Rc6 {[%clk 0:01:28]} 26. Rd4 {[%clk 0:02:23]}  d6 {[%clk 0:01:24]} 27. Rad1 {[%clk 0:02:21]}  d5 {[%clk 0:01:19]} 28. g4 {[%clk 0:02:18]}  Rf6 {[%clk 0:01:16]} 29. Kg2 {[%clk 0:02:19]}  Rc4 {[%clk 0:01:13]} 30. Kg3 {[%clk 0:02:18]}  Rf8 {[%clk 0:01:05]} 31. Rxc4 {[%clk 0:02:15]}  bxc4 {[%clk 0:01:04]} 32. Ra1 {[%clk 0:02:15]}  Ra8 {[%clk 0:01:02]} 33. Ra5 {[%clk 0:02:16]}  Rb8 {[%clk 0:00:55]} 34. Rxa6 {[%clk 0:02:15]}  Kf7 {[%clk 0:00:55]} 35. h4 {[%clk 0:02:10]}  Rb5 {[%clk 0:00:55]} 36. h5 {[%clk 0:02:07]}  h6 {[%clk 0:00:51]} 37. Kf3 {[%clk 0:01:59]}  d4 {[%clk 0:00:43]} 38. Rc6 {[%clk 0:01:50]}  d3 {[%clk 0:00:31]} 39. Ke3 {[%clk 0:01:37]}  Rd5 {[%clk 0:00:25]} 40. Kd2 {[%clk 0:01:38]}  e5 {[%clk 0:00:22]} 41. Rxc4 {[%clk 0:01:35]}  exf4 {[%clk 0:00:19]} 42. Rxf4+ {[%clk 0:01:36]}  Ke6 {[%clk 0:00:19]} 43. Rd4 {[%clk 0:01:33]}  Re5 {[%clk 0:00:09]} 44. Kxd3 {[%clk 0:01:33]}  Re1 {[%clk 0:00:06]} 45. Re4+ {[%clk 0:01:33]} 1-0


[Site "https://www.chess.com"]

[Event "Titled Tuesday Blitz May 23 Early 2023"]
[White "Brueckner, Thomas"]
[Black "Ynojosa Aponte, Felix Jose"]
[WhiteFideId "4600452"]
[BlackFideId "3900258"]
[WhiteElo "2322"]
[BlackElo "2413"]
[Result "1/2-1/2"]
[Round "05"]
[TimeControl "180+2"]
[Date "2023.05.23"]
[WhiteClock "0:00:09"]
[BlackClock "0:00:32"]

1. Nf3 {[%clk 0:02:57]}  Nf6 {[%clk 0:02:53]} 2. c4 {[%clk 0:02:55]}  c5 {[%clk 0:02:52]} 3. g3 {[%clk 0:02:54]}  Nc6 {[%clk 0:02:52]} 4. Bg2 {[%clk 0:02:53]}  e5 {[%clk 0:02:52]} 5. Nc3 {[%clk 0:02:50]}  d6 {[%clk 0:02:52]} 6. O-O {[%clk 0:02:44]}  Be7 {[%clk 0:02:51]} 7. e3 {[%clk 0:02:35]}  Be6 {[%clk 0:02:49]} 8. b3 {[%clk 0:02:28]}  d5 {[%clk 0:02:49]} 9. cxd5 {[%clk 0:02:26]}  Nxd5 {[%clk 0:02:50]} 10. Bb2 {[%clk 0:02:25]}  f6 {[%clk 0:02:49]} 11. d4 {[%clk 0:02:19]}  Nxc3 {[%clk 0:02:45]} 12. Bxc3 {[%clk 0:02:19]}  e4 {[%clk 0:02:44]} 13. Nh4 {[%clk 0:01:50]}  cxd4 {[%clk 0:02:43]} 14. exd4 {[%clk 0:01:45]}  f5 {[%clk 0:02:43]} 15. d5 {[%clk 0:01:33]}  Bxh4 {[%clk 0:02:11]} 16. dxe6 {[%clk 0:01:27]}  Qxd1 {[%clk 0:01:58]} 17. Raxd1 {[%clk 0:01:21]}  Bf6 {[%clk 0:01:52]} 18. Bxf6 {[%clk 0:01:21]}  gxf6 {[%clk 0:01:53]} 19. Rd7 {[%clk 0:01:20]}  Rb8 {[%clk 0:01:53]} 20. Bh3 {[%clk 0:01:12]}  Ne5 {[%clk 0:01:12]} 21. Rc7 {[%clk 0:01:11]}  f4 {[%clk 0:01:06]} 22. Rfc1 {[%clk 0:01:05]}  O-O {[%clk 0:01:01]} 23. Bf5 {[%clk 0:00:36]}  e3 {[%clk 0:00:53]} 24. fxe3 {[%clk 0:00:32]}  fxe3 {[%clk 0:00:51]} 25. Kf1 {[%clk 0:00:30]}  Nc6 {[%clk 0:00:44]} 26. Bxh7+ {[%clk 0:00:26]}  Kh8 {[%clk 0:00:44]} 27. Be4 {[%clk 0:00:26]}  Nd4 {[%clk 0:00:42]} 28. Rh7+ {[%clk 0:00:22]}  Kg8 {[%clk 0:00:41]} 29. Rcc7 {[%clk 0:00:22]}  e2+ {[%clk 0:00:35]} 30. Ke1 {[%clk 0:00:21]}  Nxe6 {[%clk 0:00:31]} 31. Bd5 {[%clk 0:00:19]}  Rfe8 {[%clk 0:00:32]} 32. Rcg7+ {[%clk 0:00:16]}  Kf8 {[%clk 0:00:32]} 33. Rf7+ {[%clk 0:00:14]}  Kg8 {[%clk 0:00:32]} 34. Rfg7+ {[%clk 0:00:13]}  Kf8 {[%clk 0:00:32]} 35. Rf7+ {[%clk 0:00:12]}  Kg8 {[%clk 0:00:32]} 36. Rfg7+ {[%clk 0:00:09]} 1/2-1/2


[Site "https://www.chess.com"]